bitfinex/quotes_BTCUSD_20230403
["timestamp","ask_amount","ask_price","bid_price","bid_amount"]
[1680526761842,0.02182032,28155.0,28154.0,1.90243497]
[1680526762284,0.02182032,28155.0,28154.0,1.87443497]
[1680526762511,0.02182032,28155.0,28154.0,1.90243497]
[1680526763399,0.02182032,28155.0,28154.0,1.87443497]
[1680526763646,0.02182032,28155.0,28154.0,1.90243497]
[1680526764312,0.02182032,28155.0,28154.0,1.90991497]
[1680526764559,0.02182032,28155.0,28154.0,1.93791497]
[1680526766334,0.01293832,28155.0,28154.0,1.93773497]
[1680526769811,0.01293832,28155.0,28154.0,1.99363497]
[1680526770056,0.01293832,28155.0,28154.0,2.02163497]
[1680526770725,0.01293832,28155.0,28154.0,1.99363497]
[1680526770946,0.01293832,28155.0,28154.0,2.02163497]
[1680526771633,0.00823832,28155.0,28154.0,2.02163497]
[1680526772058,0.00823832,28155.0,28154.0,1.99363497]
[1680526772272,0.00823832,28155.0,28154.0,1.93773497]
[1680526772499,0.00823832,28155.0,28154.0,1.90973497]
[1680526772712,0.00823832,28155.0,28154.0,1.93773497]
[1680526773375,0.00823832,28155.0,28154.0,2.02123497]
[1680526774719,0.00823832,28155.0,28154.0,1.99329497]
[1680526774944,0.00823832,28155.0,28154.0,2.02141497]
[1680526775205,0.00823832,28155.0,28154.0,2.02123497]
[1680526775846,0.00823832,28155.0,28154.0,1.99323497]
[1680526776050,0.00823832,28155.0,28154.0,2.02123497]
[1680526776474,0.00823832,28155.0,28154.0,1.93783497]
[1680526777573,0.00823832,28155.0,28154.0,1.90983497]
[1680526777789,0.00823832,28155.0,28154.0,1.93783497]
[1680526778020,0.00823832,28155.0,28154.0,1.85433497]
[1680526778244,0.00823832,28155.0,28154.0,1.82633497]
[1680526778484,0.00823832,28155.0,28154.0,1.85433497]
[1680526779154,0.00823832,28155.0,28154.0,1.82633497]
[1680526779383,0.00823832,28155.0,28154.0,1.85433497]
[1680526780290,0.00823832,28155.0,28154.0,1.81885497]
[1680526781203,0.00823832,28155.0,28154.0,1.79085497]
[1680526781417,0.00823832,28155.0,28154.0,1.81885497]
[1680526782788,1.95698,28162.0,28159.0,0.19690002]
[1680526783001,0.01310568,28163.0,28160.0,0.66445384]
[1680526783235,0.01310568,28163.0,28162.0,0.19690002]
[1680526783236,0.0083402,28163.0,28162.0,0.19690002]
[1680526783459,0.0083402,28163.0,28162.0,0.29615602]
[1680526783695,0.0083402,28163.0,28162.0,0.59615602]
[1680526783958,0.0083402,28163.0,28162.0,0.59633602]
[1680526784441,0.0083402,28163.0,28162.0,0.62433602]
[1680526785543,0.0083402,28163.0,28162.0,1.22893602]
[1680526788205,0.0083402,28163.0,28162.0,1.58391099]
[1680526788441,0.0083402,28163.0,28162.0,1.93941099]
[1680526788668,0.0083402,28163.0,28162.0,1.91141099]
[1680526788882,0.0083402,28163.0,28162.0,1.99304966]
[1680526789534,0.0083402,28163.0,28162.0,2.11252966]
[1680526789964,0.0083402,28163.0,28162.0,2.08452966]
[1680526790181,0.0083402,28163.0,28162.0,2.11252966]
[1680526790444,0.0083402,28163.0,28162.0,2.08452966]
[1680526790650,0.0083402,28163.0,28162.0,2.11252966]
[1680526794981,0.0083402,28163.0,28162.0,1.75755469]
[1680526795194,0.0917402,28163.0,28162.0,1.24533923]
[1680526795404,0.0917402,28163.0,28162.0,0.94533923]
[1680526795628,0.0917402,28163.0,28162.0,0.91733923]
[1680526795845,0.0917402,28163.0,28162.0,0.94533923]
[1680526796074,0.0917402,28163.0,28162.0,0.91733923]
[1680526796303,0.0917402,28163.0,28162.0,0.90883123]
[1680526796542,0.1055602,28163.0,28162.0,0.88183123]
[1680526796967,0.1055602,28163.0,28162.0,0.89107723]
[1680526797183,0.1055602,28163.0,28162.0,0.88231869]
[1680526797397,0.46053517,28163.0,28162.0,0.88231869]
[1680526797626,0.46053517,28163.0,28162.0,0.65841867]
[1680526797853,0.46381515,28163.0,28159.0,0.24916149]
[1680526798091,0.1675,28160.0,28158.0,0.017936]
[1680526798328,0.09717,28159.0,28157.0,0.017937]
[1680526798546,0.0834,28158.0,28157.0,0.017937]
[1680526798802,0.52167497,28158.0,28157.0,0.00018]
[1680526799026,0.53609297,28158.0,28155.0,0.017938]
[1680526799267,0.1675,28156.0,28155.0,0.017758]
[1680526799974,0.1675,28156.0,28155.0,0.031758]
[1680526800209,0.16650829,28156.0,28155.0,0.04159003]
[1680526800437,0.16644829,28156.0,28155.0,0.04159003]
[1680526800667,0.16644829,28156.0,28155.0,0.05559003]
[1680526801543,0.16644829,28156.0,28155.0,0.04159003]
[1680526801768,0.16644829,28156.0,28155.0,0.05559003]
[1680526801982,0.0841,28156.0,28155.0,0.04159003]
[1680526802213,0.0841,28156.0,28155.0,0.05559003]
[1680526803109,0.0841,28156.0,28155.0,0.04159003]
[1680526803325,0.0841,28156.0,28155.0,0.03783203]
[1680526803801,0.52317497,28156.0,28155.0,0.03783203]
[1680526804108,0.53721097,28156.0,28155.0,0.03783203]
[1680526804374,0.54049095,28156.0,28155.0,0.02383203]
[1680526804604,0.85971095,28156.0,28155.0,0.02383203]
[1680526805066,0.85971095,28156.0,28155.0,0.03783203]
[1680526805296,0.95971095,28156.0,28155.0,0.02383203]
[1680526805511,0.95971095,28156.0,28155.0,0.03783203]
[1680526805735,0.95989095,28156.0,28155.0,0.02383203]
[1680526806183,0.96289095,28156.0,28155.0,0.02583203]
[1680526806422,0.95989095,28156.0,28155.0,0.02383203]
[1680526806665,0.95971095,28156.0,28155.0,0.02383203]
[1680526807344,0.96271095,28156.0,28155.0,0.02583203]
[1680526808756,0.86271095,28156.0,28155.0,0.02583203]
[1680526808996,0.00309998,28152.0,28150.0,0.00018]
[1680526809233,0.52247497,28151.0,28148.0,0.00870661]
[1680526809458,0.1681,28149.0,28148.0,0.00888661]
[1680526809695,0.53721497,28149.0,28148.0,0.00888661]
[1680526810149,0.53721497,28149.0,28148.0,0.00018]
[1680526810846,0.53821497,28149.0,28148.0,0.01418]
[1680526811821,0.53821497,28149.0,28148.0,0.36928]
[1680526817919,0.45411497,28149.0,28148.0,0.36928]
[1680526818358,0.63173497,28149.0,28148.0,0.36928]
[1680526819727,0.47204497,28149.0,28148.0,0.36928]
[1680526820874,0.84544497,28149.0,28148.0,0.36928]
[1680526823191,1.00514497,28149.0,28148.0,0.36928]
[1680526825431,0.82751497,28149.0,28148.0,0.36928]
[1680526827495,0.35597497,28149.0,28148.0,0.51125487]
[1680526827720,0.35597497,28149.0,28148.0,0.387043]
[1680526828418,0.001,28149.0,28148.0,0.387043]
[1680526828631,0.001,28149.0,28148.0,0.386863]
[1680526830051,0.35597497,28149.0,28148.0,0.386863]
[1680526830286,0.37011097,28149.0,28148.0,0.387043]
[1680526830511,0.35597497,28149.0,28148.0,0.387043]
[1680526830753,0.35597497,28149.0,28148.0,0.36928]
[1680526830977,0.36991912,28149.0,28148.0,0.387043]
[1680526831197,0.36991912,28149.0,28148.0,0.36928]
[1680526831679,0.36991912,28149.0,28148.0,0.387043]
[1680526831911,0.36991912,28149.0,28148.0,0.36928]
[1680526832127,0.36991912,28149.0,28148.0,0.387043]
[1680526833241,0.36991912,28149.0,28148.0,0.36928]
[1680526833520,0.36991912,28149.0,28148.0,0.387043]
[1680526838751,0.36991912,28149.0,28148.0,0.36928]
[1680526839430,0.36991912,28149.0,28148.0,0.387043]
[1680526839658,0.36991912,28149.0,28148.0,0.36928]
[1680526844644,0.35654712,28149.0,28148.0,0.36928]
[1680526844870,0.37016912,28149.0,28148.0,0.36928]
[1680526847454,0.44596912,28149.0,28148.0,0.36928]
[1680526848231,0.52046912,28149.0,28148.0,0.35528]
[1680526848518,0.52546912,28149.0,28148.0,0.35528]
[1680526848760,0.52046912,28149.0,28148.0,0.35528]
[1680526849050,0.52646912,28149.0,28148.0,0.35628]
[1680526849327,0.52046912,28149.0,28148.0,0.35528]
[1680526849593,0.52146912,28149.0,28148.0,0.35728]
[1680526851911,0.44596912,28149.0,28148.0,0.35728]
[1680526853968,0.43996912,28149.0,28148.0,0.35528]
[1680526854202,0.43234712,28149.0,28148.0,0.35628]
[1680526855340,0.44638612,28149.0,28148.0,0.35628]
[1680526855574,0.43234712,28149.0,28148.0,0.35628]
[1680526855790,0.44069712,28149.0,28148.0,0.35528]
[1680526856260,0.42634712,28149.0,28148.0,0.35528]
[1680526856478,0.44042912,28149.0,28148.0,0.35528]
[1680526856699,0.43234712,28149.0,28148.0,0.35628]
[1680526856938,0.42634712,28149.0,28148.0,0.35528]
[1680526857169,0.44006612,28149.0,28148.0,0.35628]
[1680526857400,0.44006612,28149.0,28148.0,0.35528]
[1680526857687,0.44606612,28149.0,28148.0,0.35628]
[1680526857912,0.42634712,28149.0,28148.0,0.35528]
[1680526858123,0.43995912,28149.0,28148.0,0.35528]
[1680526858579,0.43234712,28149.0,28148.0,0.35628]
[1680526858839,0.43234712,28149.0,28148.0,0.35528]
[1680526858840,0.43952212,28149.0,28148.0,0.35528]
[1680526859763,0.43234712,28149.0,28148.0,0.35628]
[1680526859986,0.42634712,28149.0,28148.0,0.35528]
[1680526860216,0.43234712,28149.0,28148.0,0.35628]
[1680526861358,0.44627012,28149.0,28148.0,0.35628]
[1680526862723,0.37047012,28149.0,28148.0,0.35628]
[1680526865924,0.37065012,28149.0,28148.0,0.3561]
[1680526866953,0.47065012,28149.0,28148.0,0.3561]
[1680526867632,0.37065012,28149.0,28148.0,0.3561]
[1680526868769,0.74405012,28149.0,28148.0,0.3561]
[1680526871318,1.37587688,28149.0,28148.0,0.3561]
[1680526871564,1.36155747,28149.0,28148.0,0.3561]
[1680526872023,1.50735747,28149.0,28148.0,0.3551]
[1680526872249,1.43391577,28149.0,28148.0,0.3561]
[1680526872488,1.42291577,28149.0,28148.0,0.3551]
[1680526872714,1.43991577,28149.0,28148.0,0.35728]
[1680526872937,1.42291577,28149.0,28148.0,0.35528]
[1680526873165,1.43991577,28149.0,28148.0,0.3571]
[1680526873382,1.52435747,28149.0,28148.0,0.3571]
[1680526873830,1.43991577,28149.0,28148.0,0.3571]
[1680526874088,1.64052212,28149.0,28148.0,0.3571]
[1680526874313,1.43991577,28149.0,28148.0,0.3571]
[1680526877699,1.44841577,28149.0,28148.0,0.3571]
[1680526879515,1.62606577,28149.0,28148.0,0.3571]
[1680526883070,1.47386577,28149.0,28148.0,0.3571]
[1680526884242,1.47386577,28149.0,28148.0,0.35586544]
[1680526884929,1.64594248,28149.0,28148.0,0.35586544]
[1680526885857,1.47386577,28149.0,28148.0,0.35586544]
[1680526888665,1.55830747,28149.0,28148.0,0.35586544]
[1680526889124,1.47386577,28149.0,28148.0,0.35586544]
[1680526892071,1.62626577,28149.0,28148.0,0.35586544]
[1680526892296,1.0880121,28149.0,28148.0,0.35586544]
[1680526892758,0.9360121,28149.0,28148.0,0.35586544]
[1680526892992,0.93616443,28149.0,28148.0,0.35579299]
[1680526894092,0.93616443,28149.0,28148.0,0.35572115]
[1680526894541,0.93616443,28149.0,28148.0,0.35590115]
[1680526894762,0.93616443,28149.0,28148.0,0.35572115]
[1680526894985,0.93616443,28149.0,28148.0,0.3556499]
[1680526896067,0.93616443,28149.0,28148.0,0.35557925]
[1680526897274,0.93616443,28149.0,28148.0,0.35568919]
[1680526897934,0.93616443,28149.0,28148.0,0.35543971]
[1680526899118,0.93616443,28149.0,28148.0,0.35537081]
[1680526900012,0.93616443,28149.0,28148.0,0.35530248]
[1680526900917,0.93616443,28149.0,28148.0,0.35523472]
[1680526901371,0.38490243,28149.0,28148.0,0.35523472]
[1680526901596,0.37097943,28149.0,28148.0,0.35523472]
[1680526901823,0.38467743,28149.0,28148.0,0.35523472]
[1680526902058,0.38449743,28149.0,28148.0,0.35541472]
[1680526904128,0.38139745,28149.0,28148.0,0.35541472]
[1680526906540,0.38151745,28149.0,28148.0,0.35541472]
[1680526906770,0.38139745,28149.0,28148.0,0.35541472]
[1680526909129,0.36769945,28149.0,28148.0,0.35541472]
[1680526909365,0.36769945,28149.0,28148.0,0.37317772]
[1680526910070,0.35069945,28149.0,28148.0,0.35341472]
[1680526910304,0.36569945,28149.0,28148.0,0.35541472]
[1680526910526,0.36569945,28149.0,28148.0,0.57007774]
[1680526911003,0.36569945,28149.0,28148.0,0.55231474]
[1680526911244,0.36569945,28149.0,28148.0,0.57007774]
[1680526913810,0.36569945,28149.0,28148.0,0.55231474]
[1680526916846,0.37998345,28149.0,28148.0,0.55231474]
[1680526919401,0.36569945,28149.0,28148.0,0.55231474]
[1680526919852,0.38022345,28149.0,28148.0,0.55231474]
[1680526925492,0.38011669,28149.0,28148.0,0.55231474]
[1680526929010,0.77127869,28149.0,28148.0,0.55231474]
[1680526929231,0.75351669,28149.0,28148.0,0.55231474]
[1680526930355,0.75369669,28149.0,28148.0,0.55213474]
[1680526930573,0.77162669,28149.0,28148.0,0.55213474]
[1680526930790,0.78938869,28149.0,28148.0,0.55213474]
[1680526931447,0.77162669,28149.0,28148.0,0.55213474]
[1680526932145,0.45579669,28149.0,28148.0,0.56989774]
[1680526932374,0.45579669,28149.0,28148.0,0.55213474]
[1680526934331,0.45576469,28149.0,28148.0,0.55213474]
[1680526934824,0.44127269,28149.0,28148.0,0.55213474]
[1680526935382,0.45549669,28149.0,28148.0,0.55213474]
[1680526936072,0.36577269,28149.0,28148.0,0.55213474]
[1680526941122,0.37928769,28149.0,28148.0,0.55213474]
[1680526941339,0.36577269,28149.0,28148.0,0.55213474]
[1680526947928,0.01563126,28149.0,28148.0,0.57007774]
[1680526948157,0.01563126,28149.0,28148.0,0.61689374]
[1680526948786,0.00063126,28149.0,28148.0,0.61489374]
[1680526949014,0.00063126,28149.0,28148.0,0.61695374]
[1680526949237,0.00063126,28149.0,28148.0,0.61507374]
[1680526949464,0.00063126,28149.0,28148.0,0.61707374]
[1680526949952,0.00063126,28149.0,28148.0,0.57007774]
[1680526950194,0.35560623,28149.0,28148.0,0.55231474]
[1680526950920,0.35560623,28149.0,28148.0,0.57007774]
[1680526951625,0.3551273,28149.0,28148.0,0.56807774]
[1680526951863,0.3551273,28149.0,28148.0,0.57007774]
[1680526954464,0.00015233,28149.0,28148.0,0.56807774]
[1680526954703,0.00044937,28149.0,28148.0,1.36286729]
[1680526954940,0.00044937,28149.0,28148.0,1.51086729]
[1680526955172,0.00044937,28149.0,28148.0,1.51286729]
[1680526955408,0.00044937,28149.0,28148.0,1.51086729]
[1680526955649,2.0412417,28156.0,28151.0,0.2]
[1680526955886,0.2113773,28157.0,28155.0,0.19690002]
[1680526956127,0.013354,28156.0,28155.0,0.21465802]
[1680526956810,0.013354,28156.0,28155.0,0.19690002]
[1680526957261,0.014013,28157.0,28155.0,0.21465802]
[1680526957404,0.001,28156.0,28155.0,0.21465802]
[1680526957864,0.2115573,28158.0,28155.0,0.21465802]
[1680526958229,0.01404,28157.0,28155.0,0.21665802]
[1680526958686,0.01404,28157.0,28155.0,0.19890002]
[1680526958923,0.01404,28157.0,28155.0,0.21465802]
[1680526959153,0.01404,28157.0,28155.0,0.21665802]
[1680526959399,0.0846217,28159.0,28158.0,0.19690002]
[1680526959685,0.0984587,28159.0,28158.0,0.19690002]
[1680526960595,0.1104587,28159.0,28158.0,0.19890002]
[1680526961505,0.0984587,28159.0,28158.0,0.19690002]
[1680526961723,0.0984587,28159.0,28158.0,0.19890002]
[1680526961724,0.1104587,28159.0,28158.0,0.19890002]
[1680526962593,0.026017,28159.0,28158.0,0.19890002]
[1680526962842,0.1104587,28159.0,28158.0,0.19890002]
[1680526963083,0.0984587,28159.0,28158.0,0.19690002]
[1680526963360,0.38099197,28159.0,28158.0,0.19890002]
[1680526963618,0.38142096,28159.0,28158.0,0.19890002]
[1680526964120,0.36942096,28159.0,28158.0,0.19690002]
[1680526964383,0.38042096,28159.0,28158.0,0.19790002]
[1680526964656,0.36942096,28159.0,28158.0,0.19690002]
[1680526964912,0.38142096,28159.0,28158.0,0.19890002]
[1680526965182,0.36942096,28159.0,28158.0,0.19690002]
[1680526966231,0.38042096,28159.0,28158.0,0.19790002]
[1680526966486,0.38142096,28159.0,28158.0,0.19890002]
[1680526969286,0.38142096,28159.0,28158.0,0.21665602]
[1680526969552,0.36758396,28159.0,28158.0,0.21665602]
[1680526970842,0.01260899,28159.0,28158.0,0.21665602]
[1680526971165,0.01242899,28159.0,28158.0,0.56985602]
[1680526972048,0.01242899,28159.0,28158.0,0.64565602]
[1680526972268,0.01242899,28159.0,28158.0,0.68563702]
[1680526972269,0.00042899,28159.0,28158.0,0.68563702]
[1680526972714,0.001,28159.0,28158.0,0.70163802]
[1680526972934,0.0083402,28163.0,28159.0,8.626e-05]
[1680526973158,0.0083402,28163.0,28162.0,0.19690002]
[1680526973389,0.0083402,28163.0,28162.0,0.21465402]
[1680526974777,0.0083402,28163.0,28162.0,0.19690002]
[1680526974996,0.0093402,28163.0,28162.0,0.19690002]
[1680526975487,0.37708917,28163.0,28162.0,0.19690002]
[1680526975707,0.37726917,28163.0,28162.0,0.19690002]
[1680526975935,0.38226917,28163.0,28162.0,0.19690002]
[1680526976479,0.37726917,28163.0,28162.0,0.21465402]
[1680526976750,0.3887034,28163.0,28162.0,0.21565402]
[1680526977560,0.3749294,28163.0,28162.0,0.21565402]
[1680526977829,0.01995443,28163.0,28162.0,0.21565402]
[1680526978108,0.01965644,28163.0,28162.0,0.21565402]
[1680526980207,0.37463141,28163.0,28162.0,0.21565402]
[1680526980715,0.38786777,28163.0,28162.0,0.20975475]
[1680526980935,0.38786777,28163.0,28162.0,0.20957475]
[1680526981815,0.38786777,28163.0,28162.0,0.56277475]
[1680526982041,0.38786777,28163.0,28162.0,0.56295475]
[1680526982264,0.38805577,28163.0,28162.0,0.56295475]
[1680526982490,0.37411777,28163.0,28162.0,0.56295475]
[1680526983398,0.37429777,28163.0,28162.0,0.56269756]
[1680526986866,0.37429777,28163.0,28162.0,0.58045156]
[1680526990112,0.0193228,28163.0,28162.0,0.58045156]
[1680526990360,0.0191428,28163.0,28162.0,0.58045156]
[1680526990588,0.0191428,28163.0,28162.0,0.62542156]
[1680526990780,0.0191428,28163.0,28162.0,0.58045156]
[1680526992010,0.0191428,28163.0,28162.0,0.62236856]
[1680526993311,0.0081428,28163.0,28162.0,0.62136856]
[1680526993549,0.00870857,28163.0,28162.0,0.62936856]
[1680527002013,0.00870857,28163.0,28162.0,0.70516856]
[1680527002263,0.00870857,28163.0,28162.0,0.70508477]
[1680527003308,0.00770857,28163.0,28162.0,0.69708477]
[1680527003746,0.00770857,28163.0,28162.0,0.68216777]
[1680527004637,0.00770857,28163.0,28162.0,0.65516777]
[1680527004854,0.00770857,28163.0,28162.0,0.67616777]
[1680527005316,0.00810328,28163.0,28162.0,0.67616777]
[1680527006164,0.00810328,28163.0,28162.0,0.82746777]
[1680527007104,0.00810328,28163.0,28162.0,0.75166777]
[1680527007330,0.00810328,28163.0,28162.0,0.73391377]
[1680527008018,0.00810328,28163.0,28162.0,0.71291377]
[1680527008245,0.00810328,28163.0,28162.0,0.72691377]
[1680527011433,0.36307825,28163.0,28162.0,0.72691377]
[1680527011925,0.36325825,28163.0,28162.0,0.72691377]
[1680527012428,0.37714025,28163.0,28162.0,0.72691377]
[1680527012949,0.36325825,28163.0,28162.0,0.72691377]
[1680527015498,0.36325825,28163.0,28162.0,0.74466777]
[1680527020843,0.00828328,28163.0,28162.0,0.74466777]
[1680527021066,0.00810328,28163.0,28162.0,0.74466777]
[1680527021295,0.00810328,28163.0,28162.0,0.79045377]
[1680527021522,0.00810328,28163.0,28162.0,0.78636677]
[1680527022672,0.0080368,28163.0,28162.0,0.78636677]
[1680527023731,0.0080368,28163.0,28162.0,0.74466777]
[1680527024440,0.0030368,28163.0,28162.0,0.79039677]
[1680527024682,0.0030368,28163.0,28162.0,0.74466777]
[1680527024919,0.0030368,28163.0,28162.0,0.78849777]
[1680527025380,0.0030368,28163.0,28162.0,0.74466777]
[1680527025917,0.0030368,28163.0,28162.0,0.78723677]
[1680527026195,0.0030368,28163.0,28162.0,0.78626777]
[1680527027277,0.0030368,28163.0,28162.0,0.74466777]
[1680527027558,0.0030368,28163.0,28162.0,0.78852877]
[1680527027814,0.0030368,28163.0,28162.0,0.78809277]
[1680527029921,0.0030368,28163.0,28162.0,0.74466777]
[1680527030142,0.0030368,28163.0,28162.0,0.78906377]
[1680527031739,0.0971868,28166.0,28162.0,0.78906377]
[1680527031976,0.0216868,28166.0,28163.0,0.041599]
[1680527032230,0.0216868,28166.0,28164.0,0.017753]
[1680527032457,0.0216868,28166.0,28165.0,0.044128]
[1680527032689,0.0216868,28166.0,28165.0,0.197252]
[1680527034032,0.0216868,28166.0,28165.0,0.243002]
[1680527034258,0.0216868,28166.0,28165.0,0.197252]
[1680527034728,0.0246868,28166.0,28165.0,0.197252]
[1680527035394,0.0216868,28166.0,28165.0,0.197252]
[1680527035624,0.02055593,28166.0,28165.0,0.197252]
[1680527035865,0.02055593,28166.0,28165.0,0.198252]
[1680527036348,0.02055593,28166.0,28165.0,0.197252]
[1680527036350,0.02055593,28166.0,28165.0,0.198252]
[1680527036612,0.02049593,28166.0,28165.0,0.43789904]
[1680527036869,0.02049593,28166.0,28165.0,0.39517104]
[1680527037905,0.02049593,28166.0,28165.0,0.43712104]
[1680527038960,0.02049593,28166.0,28165.0,0.39517104]
[1680527039481,0.02049593,28166.0,28165.0,0.44051904]
[1680527039738,0.02049593,28166.0,28165.0,0.39517104]
[1680527040433,0.02049593,28166.0,28165.0,0.44223704]
[1680527040659,0.02049593,28166.0,28165.0,0.39517104]
[1680527041362,0.02049593,28166.0,28165.0,0.44171904]
[1680527042022,0.02049593,28166.0,28165.0,0.39517104]
[1680527042521,0.02049593,28166.0,28165.0,0.74837104]
[1680527042727,0.02049593,28166.0,28165.0,0.79246904]
[1680527044864,0.02049593,28166.0,28165.0,0.74837104]
[1680527046358,0.01049593,28166.0,28165.0,0.79281604]
[1680527048265,0.37880497,28172.0,28171.0,0.39088704]
[1680527048484,0.37862497,28172.0,28171.0,0.39088704]
[1680527048725,0.37862497,28172.0,28171.0,0.39106704]
[1680527048957,0.37862497,28172.0,28171.0,0.21466704]
[1680527049178,0.37862497,28172.0,28171.0,0.21448704]
[1680527049633,0.37862497,28172.0,28171.0,0.24148704]
[1680527049901,0.37862497,28172.0,28171.0,0.24166704]
[1680527052514,0.37862497,28172.0,28171.0,0.22391904]
[1680527052744,0.37862497,28172.0,28171.0,0.24148704]
[1680527052997,0.37880497,28172.0,28171.0,0.24148704]
[1680527053229,0.37880497,28172.0,28171.0,0.59468704]
[1680527053468,0.45460497,28172.0,28171.0,0.57693904]
[1680527053726,0.61775697,28172.0,28171.0,0.57693904]
[1680527054409,0.61775697,28172.0,28171.0,0.54993904]
[1680527054644,0.61775697,28172.0,28171.0,0.57093904]
[1680527054871,0.46775697,28172.0,28171.0,0.57093904]
[1680527055337,0.61775697,28172.0,28171.0,0.57093904]
[1680527055567,0.61775697,28172.0,28171.0,0.54993904]
[1680527055796,0.62175697,28172.0,28171.0,0.55093904]
[1680527056252,0.47175697,28172.0,28171.0,0.55093904]
[1680527057342,0.8162255,28172.0,28171.0,0.55093904]
[1680527057843,0.47175697,28172.0,28171.0,0.55093904]
[1680527066578,0.47175697,28172.0,28171.0,0.55084421]
[1680527067620,0.45860497,28172.0,28171.0,0.56859221]
[1680527068907,0.47265797,28172.0,28171.0,0.56859221]
[1680527069132,0.45860497,28172.0,28171.0,0.56859221]
[1680527070057,0.47247397,28172.0,28171.0,0.56859221]
[1680527071388,0.45860497,28172.0,28171.0,0.56859221]
[1680527071611,0.47277397,28172.0,28171.0,0.56859221]
[1680527072955,0.39697397,28172.0,28171.0,0.56859221]
[1680527073491,0.38280497,28172.0,28171.0,0.56859221]
[1680527074170,0.39683697,28172.0,28171.0,0.56859221]
[1680527074669,0.38280497,28172.0,28171.0,0.56859221]
[1680527076030,0.37880497,28172.0,28171.0,0.56759221]
[1680527076279,0.37880497,28172.0,28171.0,0.58159221]
[1680527076498,0.37880497,28172.0,28171.0,0.56759221]
[1680527076692,0.37880497,28172.0,28171.0,0.58859221]
[1680527077106,0.37880497,28172.0,28171.0,0.56759221]
[1680527077320,0.37880497,28172.0,28171.0,0.58159221]
[1680527077707,0.37880497,28172.0,28171.0,0.56759221]
[1680527077981,0.37880497,28172.0,28171.0,0.58859221]
[1680527079299,0.37880497,28172.0,28171.0,0.60259221]
[1680527079535,0.37880497,28172.0,28171.0,0.56759221]
[1680527079728,0.37880497,28172.0,28171.0,0.58859221]
[1680527079930,0.37880497,28172.0,28171.0,0.56759221]
[1680527080413,0.37880497,28172.0,28171.0,0.58159221]
[1680527080851,0.37880497,28172.0,28171.0,0.56759221]
[1680527081097,0.37880497,28172.0,28171.0,0.54984421]
[1680527081649,0.37880497,28172.0,28171.0,0.56984421]
[1680527081852,0.37880497,28172.0,28171.0,0.54984421]
[1680527082070,0.37880497,28172.0,28171.0,0.56384421]
[1680527084514,0.37880497,28172.0,28171.0,0.54984421]
[1680527084811,0.37880497,28172.0,28171.0,0.56384421]
[1680527087065,0.37880497,28172.0,28171.0,0.58159221]
[1680527087349,0.37880497,28172.0,28171.0,0.58177221]
[1680527087350,0.37854219,28172.0,28171.0,0.58177221]
[1680527087842,0.37854219,28172.0,28171.0,0.56402421]
[1680527088081,0.39260419,28172.0,28171.0,0.58177221]
[1680527088312,0.37854219,28172.0,28171.0,0.58177221]
[1680527089077,0.46763219,28172.0,28171.0,0.56402421]
[1680527090254,0.46763219,28172.0,28171.0,0.36738]
[1680527090493,0.56781219,28172.0,28171.0,0.3672]
[1680527090965,0.56781219,28172.0,28171.0,0.3532]
[1680527091201,0.56781219,28172.0,28171.0,0.3602]
[1680527091435,0.56781219,28172.0,28171.0,0.3532]
[1680527091656,0.56881219,28172.0,28171.0,0.3542]
[1680527092801,0.65357464,28172.0,28171.0,0.3542]
[1680527095108,0.55357464,28172.0,28171.0,0.3542]
[1680527098402,0.54028464,28172.0,28171.0,0.3542]
[1680527098888,0.55388664,28172.0,28171.0,0.3542]
[1680527099118,0.54028464,28172.0,28171.0,0.3542]
[1680527099567,0.55369064,28172.0,28171.0,0.3542]
[1680527100475,0.54028464,28172.0,28171.0,0.3542]
[1680527100709,0.54028464,28172.0,28171.0,0.55084421]
[1680527100972,0.46448464,28172.0,28171.0,0.55084421]
[1680527102179,0.46348464,28172.0,28171.0,0.54984421]
[1680527102417,0.46348464,28172.0,28171.0,0.55084421]
[1680527102651,0.37872219,28172.0,28171.0,0.54984421]
[1680527103128,0.37872219,28172.0,28171.0,0.55084421]
[1680527106087,0.46348464,28172.0,28171.0,0.55084421]
[1680527106640,0.37872219,28172.0,28171.0,0.55084421]
[1680527107376,0.46348464,28172.0,28171.0,0.55084421]
[1680527107843,0.37872219,28172.0,28171.0,0.55084421]
[1680527108085,0.46348464,28172.0,28171.0,0.55084421]
[1680527109222,0.47644664,28172.0,28171.0,0.55084421]
[1680527109440,0.46348464,28172.0,28171.0,0.55084421]
[1680527110861,0.47756264,28172.0,28171.0,0.55084421]
[1680527111304,0.46348464,28172.0,28171.0,0.55084421]
[1680527112209,0.47756864,28172.0,28171.0,0.55084421]
[1680527112434,0.46348464,28172.0,28171.0,0.55084421]
[1680527112896,0.47763764,28172.0,28171.0,0.55084421]
[1680527113627,0.46348464,28172.0,28171.0,0.55084421]
[1680527114138,0.47752664,28172.0,28171.0,0.55084421]
[1680527114459,0.46348464,28172.0,28171.0,0.55084421]
[1680527114896,0.47721264,28172.0,28171.0,0.55084421]
[1680527115140,0.47778664,28172.0,28171.0,0.55084421]
[1680527115654,0.46348464,28172.0,28171.0,0.55084421]
[1680527115888,0.47743064,28172.0,28171.0,0.55084421]
[1680527116368,0.47774264,28172.0,28171.0,0.55084421]
[1680527116622,0.47689864,28172.0,28171.0,0.55084421]
[1680527116856,0.47769964,28172.0,28171.0,0.55084421]
[1680527117110,0.46348464,28172.0,28171.0,0.55084421]
[1680527117901,0.47721364,28172.0,28171.0,0.55084421]
[1680527120742,0.47721364,28172.0,28171.0,0.54984421]
[1680527120981,0.47721364,28172.0,28171.0,0.55084421]
[1680527121199,0.60409174,28172.0,28171.0,0.55084421]
[1680527121431,0.47721364,28172.0,28171.0,0.55084421]
[1680527122128,0.55301364,28172.0,28171.0,0.55084421]
[1680527122568,0.67989174,28172.0,28171.0,0.55084421]
[1680527122824,0.55301364,28172.0,28171.0,0.55084421]
[1680527123276,0.55301364,28172.0,28171.0,0.54984421]
[1680527123508,0.55401364,28172.0,28171.0,0.55084421]
[1680527123737,0.68089174,28172.0,28171.0,0.55084421]
[1680527124837,0.59612929,28172.0,28171.0,0.55084421]
[1680527125890,0.82132929,28172.0,28171.0,0.55084421]
[1680527126029,0.86369866,28172.0,28171.0,0.55084421]
[1680527126651,0.99101348,28172.0,28171.0,0.55084421]
[1680527126876,0.91521348,28172.0,28171.0,0.55084421]
[1680527127134,0.74596601,28172.0,28171.0,0.55084421]
[1680527128899,0.59596601,28172.0,28171.0,0.55084421]
[1680527129118,0.74596601,28172.0,28171.0,0.55084421]
[1680527129337,0.59596601,28172.0,28171.0,0.55084421]
[1680527129746,0.69596601,28172.0,28171.0,0.55084421]
[1680527130614,0.59596601,28172.0,28171.0,0.55084421]
[1680527131740,0.68078881,28172.0,28171.0,0.55084421]
[1680527132203,0.55347399,28172.0,28171.0,0.56859221]
[1680527132431,0.53974499,28172.0,28171.0,0.55084421]
[1680527132664,0.55354399,28172.0,28171.0,0.55084421]
[1680527132897,0.55332799,28172.0,28171.0,0.56859221]